bitfinex/quotes_ETHUSD_20250214
["timestamp","ask_amount","ask_price","bid_price","bid_amount"]
[1739544622151,3.0,2715.8,2715.3,3.68272]
[1739544622446,3.68216,2715.8,2715.4,0.7549]
[1739544622595,3.68216,2715.8,2715.1,3.68307]
[1739544622799,3.6823,2715.7,2715.1,4.126827]
[1739544623009,3.0,2715.8,2715.3,3.68271]
[1739544623214,3.0,2716.1,2715.2,0.7624]
[1739544623409,3.6821,2715.9,2715.4,3.68267]
[1739544624226,3.68199,2716.0,2715.4,3.68267]
[1739544624431,3.68257,2715.5,2715.2,0.7549]
[1739544624645,3.68257,2715.5,2715.0,3.6832]
[1739544625000,3.0,2715.6,2714.9,0.7549]
[1739544625307,3.0,2715.6,2714.9,4.4382]
[1739544625308,3.68277,2715.4,2714.9,4.4382]
[1739544626321,3.68293,2715.3,2714.9,0.7549]
[1739544626948,3.68277,2715.4,2714.9,0.7549]
[1739544627136,3.68277,2715.4,2714.9,4.43816]
[1739544628250,4.37763155,2716.5,2715.1,0.7549]
[1739544628449,3.68093,2716.7,2715.6,3.68235]
[1739544628651,3.68162,2716.2,2715.6,3.68235]
[1739544628850,3.68162,2716.2,2715.3,0.7549]
[1739544628851,3.68227,2715.8,2715.3,0.7549]
[1739544629151,3.68197,2716.0,2715.4,3.68261]
[1739544629350,0.7573,2715.8,2714.6,0.7549]
[1739544629535,0.7573,2715.1,2714.6,0.7549]
[1739544629742,3.72030846,2715.0,2714.6,0.7549]
[1739544629937,0.7573,2715.1,2714.6,0.7549]
[1739544630249,3.68383,2714.6,2714.1,0.0075]
[1739544630414,0.03697846,2714.5,2714.1,1.123363]
[1739544630609,5.13493155,2715.1,2714.1,1.123363]
[1739544630813,3.6832,2715.1,2714.2,0.79923969]
[1739544631044,3.6832,2715.1,2714.3,3.68419]
[1739544631356,3.6832,2715.1,2714.3,3.68411]
[1739544631357,3.0,2715.0,2714.3,3.68411]
[1739544631557,0.03697846,2715.1,2714.2,0.7549]
[1739544631706,3.68373,2714.7,2714.2,0.7549]
[1739544631912,7.36746,2714.7,2714.2,0.7549]
[1739544632223,3.68392,2714.5,2714.2,0.7549]
[1739544632437,3.68392,2714.5,2714.0,0.283]
[1739544632639,3.68392,2714.5,2713.9,4.43962]
[1739544632839,3.68392,2714.5,2713.9,4.43953]
[1739544633910,7.40519846,2714.4,2713.9,0.7549]
[1739544634240,7.40519846,2714.4,2713.6,0.7549]
[1739544634241,3.6847,2714.0,2713.6,0.7549]
[1739544634444,3.7573,2714.1,2713.4,0.5]
[1739544634633,4.41461001,2713.9,2713.4,0.5]
[1739544634820,3.68511,2713.7,2713.4,0.5]
[1739544635022,8.06243155,2713.9,2713.4,0.5]
[1739544635218,3.68509,2713.7,2713.4,0.5]
[1739544635432,0.5335864,2713.9,2713.4,0.5]
[1739544635614,3.6846,2714.0,2713.4,0.5]
[1739544635819,7.44177,2714.1,2713.5,0.7512]
[1739544636158,3.68383,2714.6,2713.8,3.68484]
[1739544636159,3.68405,2714.4,2713.8,3.68484]
[1739544636368,0.03697846,2714.3,2713.5,0.7512]
[1739544636516,4.125661,2714.3,2713.7,3.68497]
[1739544636716,3.0,2714.4,2713.8,3.68478]
[1739544636939,3.0,2714.4,2713.9,3.68468]
[1739544637341,3.68419,2714.3,2713.9,0.283]
[1739544638260,3.68419,2714.3,2713.7,3.68499]
[1739544638560,3.0,2714.4,2713.9,3.68465]
[1739544638722,3.0,2714.4,2713.9,7.3693]
[1739544638920,3.0,2714.4,2714.0,3.68458]
[1739544639114,4.43832,2714.7,2714.0,3.68458]
[1739544639115,0.7546,2714.7,2714.1,3.68446]
[1739544639348,3.68344,2714.9,2714.2,0.7512]
[1739544639620,0.7546,2715.0,2714.5,3.68389]
[1739544639853,3.0,2715.0,2714.5,3.68389]
[1739544640370,3.68318,2715.1,2714.5,3.68389]
[1739544640659,9.00268,2715.5,2714.9,3.68337]
[1739544640862,0.7546,2715.6,2714.9,3.68335]
[1739544641048,3.68233,2715.7,2715.1,3.68302]
[1739544642336,3.68233,2715.7,2715.1,7.36603]
[1739544642563,9.75669,2715.9,2715.3,3.68275]
[1739544642769,5.32,2715.9,2715.4,0.283]
[1739544643059,5.32,2715.9,2715.6,3.68239]
[1739544643245,4.43624,2716.2,2715.6,3.68239]
[1739544643456,4.43624,2716.2,2715.4,3.96568]
[1739544643659,3.68182,2716.1,2715.4,3.96561]
[1739544643860,6.68196,2716.0,2715.4,4.437291]
[1739544644178,6.68196,2716.0,2715.5,3.68256]
[1739544644507,3.68164,2716.2,2715.6,3.68233]
[1739544644931,3.68155,2716.3,2715.7,4.4334]
[1739544645131,0.7546,2716.5,2715.8,3.68212]
[1739544645338,0.7546,2716.5,2715.9,3.68194]
[1739544645680,4.43583,2716.5,2715.9,3.68194]
[1739544646146,6.68137,2716.4,2715.9,3.68201]
[1739544646558,7.43583,2716.5,2715.9,3.68201]
[1739544646737,6.68123,2716.5,2715.9,3.68201]
[1739544647076,6.68123,2716.5,2715.7,1.562773]
[1739544647077,3.68139,2716.4,2715.7,1.562773]
[1739544647238,3.68139,2716.4,2715.8,4.2065513]
[1739544647465,3.6815,2716.3,2715.8,4.2065513]
[1739544647797,7.36285,2716.4,2715.8,4.2065513]
[1739544648223,3.68161,2716.2,2715.8,0.5245113]
[1739544648586,3.68194,2716.0,2715.5,0.282]
[1739544648790,3.68194,2716.0,2715.5,3.96455]
[1739544649699,7.43626,2716.2,2715.6,3.68242]
[1739544649858,3.68141,2716.4,2715.8,3.68208]
[1739544650061,7.36285,2716.4,2715.8,3.68207]
[1739544650262,7.36285,2716.4,2715.6,3.68984]
[1739544650263,3.68168,2716.2,2715.7,3.68226]
[1739544650460,3.68157,2716.3,2715.6,3.68984]
[1739544650763,3.68136,2716.4,2715.9,4.4727]
[1739544651019,3.0,2716.4,2715.9,0.7907]
[1739544651154,6.68134,2716.4,2715.9,0.7907]
[1739544651358,3.68125,2716.5,2715.9,4.4727]
[1739544651568,3.0,2716.4,2716.0,3.68185]
[1739544651773,3.0,2716.4,2716.0,3.68179]
[1739544651994,3.68125,2716.5,2715.9,0.7907]
[1739544652297,3.68136,2716.4,2715.9,4.47271]
[1739544652724,3.68093,2716.7,2715.9,0.7907]
[1739544652926,3.68163,2716.2,2715.9,0.7907]
[1739544653224,3.03697846,2716.5,2715.9,0.7907]
[1739544653363,49.878,2720.3,2715.9,0.7907]
[1739544653364,6.1043,2717.1,2716.3,0.7907]
[1739544653701,4.46469,2717.1,2716.4,0.282]
[1739544653903,1.66853216,2717.1,2716.4,0.282]
[1739544654085,3.68087,2716.8,2716.4,0.282]
[1739544654619,3.0,2716.9,2716.4,0.282]
[1739544654770,3.68067,2716.9,2716.4,3.96334]
[1739544654995,3.68062,2717.0,2716.5,3.68118]
[1739544656116,7.36123,2717.0,2716.5,3.68118]
[1739544656418,3.68061,2717.0,2716.5,3.68113]
[1739544656631,3.68061,2717.0,2716.5,3.68109]
[1739544656832,6.6804,2717.1,2716.6,3.68098]
[1739544657189,3.0,2717.1,2716.6,3.68098]
[1739544657448,3.0,2717.1,2716.7,3.68093]
[1739544657606,6.68048,2717.1,2716.4,3.96324]
[1739544657810,6.68048,2717.1,2716.6,3.68102]
[1739544658012,6.68048,2717.1,2716.5,0.475394]
[1739544658212,3.68072,2716.9,2716.5,0.475394]
[1739544658392,3.68088,2716.8,2716.5,0.475394]
[1739544658732,3.68059,2717.0,2716.5,4.156594]
[1739544659091,3.68071,2716.9,2716.5,4.156594]
[1739544659322,3.68046,2717.1,2716.6,3.68107]
[1739544659686,3.68069,2716.9,2716.5,4.156594]
[1739544660032,3.68103,2716.7,2716.3,0.7907]
[1739544660331,3.68103,2716.7,2716.4,0.281]
[1739544660489,3.68127,2716.5,2716.3,0.7907]
[1739544660690,3.68127,2716.5,2716.3,0.281]
[1739544660890,3.68141,2716.4,2716.1,0.7907]
[1739544661129,4.41461001,2716.6,2716.2,0.281]
[1739544661130,3.6812,2716.5,2716.2,0.281]
[1739544661332,3.7843,2716.8,2716.2,0.281]
[1739544661533,3.68129,2716.5,2716.2,0.281]
[1739544661893,7.36259,2716.5,2716.2,0.281]
[1739544662096,3.68147,2716.3,2716.1,0.7907]
[1739544662291,0.78987846,2716.2,2715.5,0.7746]
[1739544662541,0.78987846,2716.2,2715.6,0.28]
[1739544662542,3.68214,2715.9,2715.6,0.28]
[1739544662802,3.68196,2716.0,2715.6,0.28]
[1739544663010,7.43459,2716.2,2715.6,0.28]
[1739544663145,5.32,2716.7,2715.8,0.7746]
[1739544663345,9.00101,2716.7,2716.2,3.68159]
[1739544663602,3.0,2716.6,2716.2,3.68159]
[1739544663811,3.68121,2716.5,2716.0,7.36363]
[1739544664021,3.0,2716.6,2716.1,0.736363]
[1739544664168,3.0,2716.6,2716.2,4.45619]
[1739544664571,0.7529,2717.2,2716.2,0.7746]
[1739544664781,3.68049,2717.1,2716.4,3.68127]
[1739544665085,6.68054,2717.0,2716.5,3.96211]
[1739544665509,3.68075,2716.9,2716.5,0.281]
[1739544665950,3.68088,2716.8,2716.5,0.281]
[1739544666353,3.0,2717.0,2716.5,0.281]
[1739544666669,6.68062,2717.0,2716.5,0.281]
[1739544667165,0.03697846,2716.9,2716.2,4.46362]
[1739544667495,3.03697846,2716.9,2716.3,0.281]
[1739544667657,3.68131,2716.5,2716.3,0.281]
[1739544668296,3.68117,2716.6,2716.3,0.281]
[1739544668499,8.05816155,2717.0,2716.3,3.96247]
[1739544668500,3.68089,2716.8,2716.3,3.96247]
[1739544668790,3.68095,2716.7,2716.3,0.754707]
[1739544668994,11.05819155,2717.0,2716.3,0.281]
[1739544669163,3.68123,2716.5,2716.3,0.281]
[1739544669379,3.68081,2716.8,2716.3,3.96246]
[1739544669674,3.68094,2716.7,2716.3,0.281]
[1739544669925,11.05827155,2717.0,2716.3,0.281]
[1739544670090,3.68066,2716.9,2716.4,3.68133]
[1739544670391,3.68066,2716.9,2716.5,3.6812]
[1739544670594,3.68077,2716.9,2716.4,3.96232]
[1739544670896,3.68086,2716.8,2716.4,0.281]
[1739544671199,3.68088,2716.8,2716.4,0.281]
[1739544671494,7.36154,2716.9,2716.4,0.281]
[1739544671797,3.68074,2716.9,2716.4,0.281]
[1739544672166,3.68087,2716.8,2716.4,0.281]
[1739544672368,3.68087,2716.8,2716.4,3.96231]
[1739544672671,3.68087,2716.8,2716.4,4.8522721]
[1739544672872,3.68087,2716.8,2716.4,1.1709621]
[1739544673074,3.681,2716.7,2716.4,1.1709621]
[1739544673586,3.681,2716.7,2716.4,0.281]
[1739544674402,3.68134,2716.4,2716.2,0.7746]
[1739544674572,3.68134,2716.4,2715.8,9.51906]
[1739544674776,3.68067,2716.9,2715.8,5.837]
[1739544674777,3.68183,2716.1,2715.8,5.837]
[1739544674976,3.68198,2716.0,2715.8,5.837]
[1739544675583,3.68183,2716.1,2715.8,5.837]
[1739544676278,7.36369,2716.1,2715.8,5.837]
[1739544676477,3.68183,2716.1,2715.8,5.837]
[1739544676703,5.18853155,2716.7,2715.8,5.837]
[1739544676903,3.68183,2716.1,2715.8,5.837]
[1739544677687,3.68202,2715.9,2715.8,5.837]
[1739544679205,4.49255,2716.2,2715.8,5.837]
[1739544679206,0.8109,2716.2,2715.8,5.837]
[1739544679366,3.68195,2716.0,2715.8,5.837]
[1739544679566,3.68202,2715.9,2715.8,5.837]
[1739544680680,6.68182,2716.1,2715.8,5.837]
[1739544680891,3.6812,2716.5,2715.9,0.7807]
[1739544681081,3.68167,2716.2,2715.9,0.7807]
[1739544681305,3.68184,2716.1,2715.8,5.837]
[1739544681500,3.68132,2716.5,2715.8,5.837]
[1739544681706,3.68142,2716.4,2715.8,5.837]
[1739544681903,6.68101,2716.7,2716.0,3.6818]
[1739544682105,3.68079,2716.9,2716.2,0.0075]
[1739544682444,3.68024,2717.3,2716.7,3.68082]
[1739544682599,7.36046,2717.3,2716.8,0.447792]
[1739544682800,3.68041,2717.1,2716.6,0.7971]
[1739544683804,3.68041,2717.1,2716.6,4.47817]
[1739544684232,7.36043,2717.3,2716.7,3.6809]
[1739544684395,3.68019,2717.3,2716.7,3.6809]
[1739544684595,3.68026,2717.2,2716.6,4.47809]
[1739544684795,3.68026,2717.2,2716.7,0.447809]
[1739544684995,6.68001,2717.4,2716.9,3.68066]
[1739544685701,3.68013,2717.3,2716.8,3.6808]
[1739544686055,3.0,2717.4,2717.0,0.7971]
[1739544686196,6.68002,2717.4,2717.0,0.7971]
[1739544686593,3.68039,2717.1,2716.9,0.28]
[1739544686902,13.37735155,2717.6,2716.9,3.96064]
[1739544687101,6.68005,2717.4,2716.9,0.28]
[1739544687702,0.03697846,2717.3,2716.9,0.28]
[1739544687899,0.8198,2717.3,2716.9,0.28]
[1739544688098,3.68027,2717.2,2716.7,0.7971]
[1739544688297,3.68027,2717.2,2716.7,1.0771]
[1739544688504,3.8198,2717.5,2717.1,3.68032]
[1739544688750,0.8198,2717.5,2717.2,3.68024]
[1739544689050,3.8198,2717.5,2717.1,3.68032]
[1739544689223,3.0,2717.5,2717.1,3.68032]
[1739544689553,3.68001,2717.4,2716.9,3.68058]
[1739544690148,3.68043,2717.1,2716.7,0.7971]
[1739544690354,3.68035,2717.2,2716.8,0.28]
[1739544690522,3.68011,2717.4,2716.8,0.28]
[1739544690710,3.68023,2717.3,2716.8,3.96073]
[1739544690911,3.68029,2717.2,2716.8,0.28]
[1739544691110,3.68029,2717.2,2716.7,0.7971]
[1739544691111,3.68029,2717.2,2716.7,4.75803]
[1739544691307,3.0,2717.5,2716.7,1.0771]
[1739544691308,3.68047,2717.1,2716.7,1.0771]
[1739544692247,3.71744846,2717.1,2716.7,0.7971]
[1739544692510,3.68081,2716.8,2716.4,0.7971]
[1739544692631,3.68076,2716.9,2716.4,4.75839]
[1739544693037,0.03697846,2716.9,2716.4,1.0771]
[1739544693424,3.68066,2716.9,2716.4,4.75844]
[1739544693659,1.55956585,2717.1,2716.5,3.6811]
[1739544693958,3.68032,2717.2,2716.7,3.68085]
[1739544694327,0.8198,2717.4,2717.0,3.68051]
[1739544694519,4.37763155,2717.6,2717.0,3.68051]
[1739544694520,3.67984,2717.6,2717.1,3.68039]
[1739544694845,0.449964,2717.6,2717.1,3.68032]
[1739544695053,0.8198,2718.0,2717.1,0.0075]
[1739544695239,3.67925,2718.0,2717.4,0.7753]
[1739544695761,3.67968,2717.7,2717.4,0.7753]
[1739544695918,3.67978,2717.6,2717.3,0.281]
[1739544696664,3.0,2718.1,2717.4,3.67985]
[1739544696665,3.67924,2718.0,2717.4,3.67985]
[1739544696821,3.67924,2718.0,2717.5,3.67975]
[1739544697442,6.67924,2718.0,2717.5,3.67975]
[1739544698250,3.0,2718.0,2717.5,3.67975]
[1739544698438,3.0,2718.0,2717.6,4.45491]
[1739544698633,3.0,2718.0,2717.7,3.67954]
[1739544698834,3.67898,2718.2,2717.7,3.67954]
[1739544699035,3.0,2718.1,2717.6,0.7753]
[1739544699253,6.71610846,2718.1,2717.6,0.7753]
[1739544699448,10.35829,2718.1,2717.6,4.455]
[1739544699653,3.0,2718.2,2717.7,3.67951]
[1739544699851,6.67893,2718.2,2717.7,3.67954]
[1739544700274,10.35793,2718.2,2717.7,3.67954]
[1739544700684,3.67914,2718.1,2717.6,0.7753]
[1739544701091,3.67914,2718.1,2717.7,3.67957]
[1739544701248,3.67907,2718.1,2717.6,0.7753]
[1739544701580,3.67917,2718.0,2717.6,0.7753]
[1739544702139,3.67907,2718.1,2717.6,4.45498]
[1739544702544,3.67907,2718.1,2717.7,3.67957]
[1739544702779,3.67907,2718.1,2717.6,0.7753]
[1739544702952,3.67923,2718.0,2717.6,0.7753]
[1739544703359,3.679,2718.2,2717.6,4.45491]
[1739544703555,3.67938,2717.9,2717.6,0.7753]
[1739544703883,3.67962,2717.7,2717.3,0.28]
[1739544704250,3.67912,2718.1,2717.4,3.67998]
[1739544704446,3.67918,2718.0,2717.5,3.67985]
[1739544705259,3.67918,2718.0,2717.6,3.67969]
[1739544706484,4.45357,2718.3,2717.8,3.67938]
[1739544706860,3.67894,2718.2,2717.7,4.45487]
[1739544707461,4.45332,2718.5,2717.7,0.81209386]
[1739544707695,4.45332,2718.5,2717.9,3.67927]
[1739544707696,3.67866,2718.4,2717.9,3.67927]
[1739544708018,3.67899,2718.2,2717.7,0.7753]
[1739544708551,3.67911,2718.1,2717.7,0.7753]
[1739544708693,3.67899,2718.2,2717.7,4.45487]
[1739544708889,3.67914,2718.1,2717.7,0.7753]
[1739544709080,3.67899,2718.2,2717.7,0.7753]
[1739544709427,3.67899,2718.2,2717.7,4.45478]
[1739544709782,3.6792,2718.0,2717.7,0.7753]
[1739544709982,3.6792,2718.0,2717.5,4.45504]
[1739544710210,3.67894,2718.2,2717.6,3.67961]
[1739544710414,3.67894,2718.2,2717.6,7.35922]
[1739544710852,6.67877,2718.3,2717.8,3.67941]
[1739544711153,3.0,2718.3,2717.9,3.67924]
[1739544711682,3.67871,2718.4,2717.9,3.67924]
[1739544711898,3.67883,2718.3,2717.8,3.67941]
[1739544712093,0.7747,2718.5,2717.6,0.841352]
[1739544712329,3.67924,2718.0,2717.5,4.45507]
[1739544712644,3.67906,2718.1,2717.6,3.67962]
[1739544713622,3.67906,2718.1,2717.5,0.7753]
[1739544713822,3.67898,2718.2,2717.5,0.7753]
[1739544713823,3.0,2718.4,2717.5,4.45514]
[1739544714027,3.67876,2718.3,2717.7,3.67951]
[1739544714606,3.67893,2718.2,2717.7,3.67951]
[1739544714793,3.67893,2718.2,2717.8,3.67942]
[1739544715328,6.6787,2718.4,2717.8,3.67942]
[1739544715631,3.0,2718.4,2718.0,4.43271]
[1739544715787,6.67864,2718.4,2718.0,0.7536]
[1739544716190,3.0,2718.4,2718.0,0.7536]
[1739544716387,3.0,2718.4,2718.1,3.67902]
[1739544716729,3.0,2718.4,2718.1,3.679]
[1739544718692,4.46493,2718.7,2718.2,3.67888]
[1739544718920,3.67823,2718.7,2718.3,0.367888]
[1739544719321,3.67802,2718.9,2718.3,0.367888]
[1739544719656,3.67802,2718.9,2718.0,0.7536]
[1739544719657,3.67802,2718.9,2718.4,3.67851]
[1739544720666,3.67802,2718.9,2718.4,3.67861]
[1739544721019,0.03697846,2718.8,2718.0,0.7536]
[1739544721226,3.67878,2718.3,2718.1,0.278]
[1739544721663,3.67901,2718.2,2717.6,1.206614]
[1739544721826,3.67914,2718.1,2717.9,0.278]
[1739544722160,3.67901,2718.2,2717.9,0.278]
[1739544722364,3.67911,2718.1,2717.9,0.278]
[1739544723039,3.67917,2718.0,2717.9,0.278]
[1739544723241,3.67876,2718.3,2717.6,0.7536]
[1739544723571,3.67921,2718.0,2717.6,1.0316]
[1739544723737,3.67941,2717.9,2717.6,1.0316]
[1739544724870,3.67921,2718.0,2717.6,1.0316]
[1739544725571,3.679,2718.2,2717.6,1.0316]
[1739544725772,3.67938,2717.9,2717.6,1.0316]
[1739544728075,3.67918,2718.0,2717.6,1.0316]
[1739544728284,3.67883,2718.3,2717.6,1.870734]
[1739544728442,3.67904,2718.1,2717.7,3.67951]
[1739544728784,3.67904,2718.1,2717.6,5.550434]
[1739544728941,0.7867,2718.5,2717.7,0.03679503]
[1739544729142,3.67897,2718.2,2717.7,3.67958]
[1739544729453,3.67891,2718.2,2717.8,38.67937]
[1739544729976,3.67891,2718.2,2717.8,35.0]
[1739544730155,3.67874,2718.4,2717.8,38.67936]
[1739544730354,3.67891,2718.2,2717.8,35.0]
[1739544730555,3.67891,2718.2,2717.9,3.80633374]
[1739544730744,3.67917,2718.0,2717.8,35.0]
[1739544730939,3.67946,2717.8,2717.6,1.0316]
[1739544731138,3.67946,2717.8,2717.6,0.278]
[1739544732689,4.50188,2718.0,2717.6,0.278]
[1739544732888,3.67945,2717.8,2717.4,0.7593]
[1739544733184,3.67985,2717.5,2717.3,0.277]
[1739544733682,3.67998,2717.4,2717.3,0.277]
[1739544733840,3.67985,2717.5,2717.3,0.277]
[1739544734056,3.67952,2717.8,2717.3,3.95705]
[1739544734249,0.8226,2718.0,2717.4,0.395705]
[1739544734455,3.0,2718.0,2717.5,3.67974]
[1739544734692,6.67918,2718.0,2717.6,0.7593]
[1739544734992,3.0,2718.0,2717.6,0.7593]
[1739544735166,8.99886,2718.3,2717.8,3.67937]
[1739544735370,3.67886,2718.3,2717.8,3.67937]
[1739544735850,3.67886,2718.3,2717.8,7.35874]
[1739544736052,3.67886,2718.3,2717.8,3.67937]
[1739544736291,7.35773,2718.3,2717.8,3.67937]
[1739544736478,7.35772,2718.3,2717.8,4.53954745]
[1739544736675,3.67886,2718.3,2717.8,4.53954745]
[1739544737093,7.35776,2718.3,2717.8,4.53954745]
[1739544737396,3.67886,2718.3,2717.8,4.53954745]
[1739544737595,3.67859,2718.5,2717.8,4.53954745]
[1739544737596,3.67849,2718.5,2717.8,0.86017745]
[1739544737784,3.67917,2718.0,2717.6,1.2427745]
[1739544737983,3.67937,2717.9,2717.6,1.2427745]
[1739544738182,3.67951,2717.8,2717.4,1.0363]
[1739544738399,3.67937,2717.9,2717.4,1.0363]
[1739544738400,3.6796,2717.7,2717.4,1.0363]
[1739544739197,3.67997,2717.5,2717.2,0.277]
[1739544739362,3.68005,2717.4,2717.2,0.277]
[1739544739564,3.68005,2717.4,2717.1,0.7593]
[1739544739876,3.68015,2717.3,2717.1,1.16657743]
[1739544740258,3.68015,2717.3,2716.9,6.112]
[1739544740710,3.68029,2717.2,2716.9,5.835]
[1739544741025,3.68009,2717.4,2716.9,9.51565]
[1739544741160,3.68014,2717.3,2716.9,5.835]
[1739544741366,3.68025,2717.2,2716.9,6.890209]
[1739544741794,7.36037,2717.3,2716.9,6.890209]
[1739544742097,3.68032,2717.2,2716.9,5.835]
[1739544742457,0.03697846,2717.2,2716.9,5.835]
[1739544742722,4.48127,2717.1,2716.9,5.835]
[1739544743255,4.48127,2717.1,2716.7,0.277]
[1739544743457,3.8008,2717.1,2716.4,35.0]
[1739544743684,3.8008,2717.1,2716.3,0.7977]
[1739544743685,3.68088,2716.8,2716.5,0.277]
[1739544743889,7.36176,2716.8,2716.5,0.277]
[1739544744326,3.68115,2716.6,2716.3,0.7977]
[1739544744669,3.68094,2716.7,2716.3,0.7977]
[1739544744896,7.4813,2717.1,2716.6,3.68099]
[1739544745108,3.68066,2716.9,2716.4,4.156938]
[1739544745313,3.68066,2716.9,2716.4,0.475618]
[1739544745616,4.48098,2717.3,2716.5,3.71798837]
[1739544745785,3.68059,2717.0,2716.5,3.68118]
[1739544745979,3.68059,2717.0,2716.5,4.5447678]
[1739544746173,3.68059,2717.0,2716.6,35.0]
[1739544746404,3.68033,2717.2,2716.7,3.68086]
[1739544746587,3.68033,2717.2,2716.8,8.28482374]
[1739544746776,0.8008,2717.7,2717.1,3.6803]
[1739544746973,3.67981,2717.6,2716.9,3.68057]
[1739544747174,3.67987,2717.5,2717.0,3.68052]
[1739544747477,3.4875205,2717.8,2717.0,3.68052]
[1739544747478,3.67944,2717.8,2717.4,3.67997]
[1739544747673,3.67944,2717.8,2717.3,4.47781]
[1739544747888,3.67944,2717.8,2717.3,5.321315]
[1739544748317,0.8008,2718.0,2717.3,5.321285]
[1739544748490,7.35879,2717.9,2717.3,5.321285]
[1739544748877,3.67937,2717.9,2717.3,1.641205]
[1739544749078,3.67952,2717.8,2717.3,1.641205]
[1739544749479,3.67952,2717.8,2717.3,5.321305]
[1739544749679,3.67965,2717.7,2717.3,5.321315]
[1739544749881,3.67939,2717.9,2717.4,4.2398115]
[1739544750283,3.67957,2717.8,2717.4,0.5598315]
[1739544750597,3.67957,2717.8,2717.3,0.7977]
[1739544751423,7.47997,2718.0,2717.4,3.67997]
[1739544751814,3.67917,2718.0,2717.6,3.6797]
[1739544752017,3.4875205,2718.4,2717.4,3.67997]
[1739544752018,3.4875205,2719.4,2718.2,0.015]
[1739544752306,3.3635106,2719.3,2718.4,0.0075]
[1739544752476,3.67815,2718.8,2718.5,0.279]
[1739544752678,3.67789,2719.0,2718.5,0.279]
[1739544752894,3.67763,2719.2,2718.6,3.67827]
[1739544753094,7.3553,2719.2,2718.6,3.67827]
[1739544753295,3.67763,2719.2,2718.6,3.67827]
[1739544753509,3.67769,2719.1,2718.5,3.95739]
[1739544753703,3.67758,2719.2,2718.7,3.67822]
[1739544753922,0.1475855,2719.5,2718.8,0.7977]
[1739544754093,3.67728,2719.4,2718.8,4.47577]
[1739544754500,3.67728,2719.4,2718.9,3.67794]
[1739544754705,3.67728,2719.4,2718.8,4.47577]
[1739544754911,3.67728,2719.4,2718.9,3.67792]
[1739544755497,3.8247955,2719.5,2718.9,3.67784]
[1739544755882,0.1475855,2719.5,2719.1,3.67759]
[1739544756111,0.1475855,2719.5,2719.3,3.67729]
[1739544756536,0.1475855,2719.5,2719.4,3.95528]
[1739544756852,0.1475855,2719.5,2719.4,4.73588]
[1739544757039,0.1475855,2719.5,2719.4,5.577197]
[1739544757217,0.1475855,2719.5,2719.4,5.569697]
[1739544757579,0.1475855,2719.5,2719.4,5.570697]
[1739544762125,0.1475855,2719.5,2719.4,6.128197]
[1739544762960,5.5e-06,2719.5,2719.4,9.164961]
[1739544763118,5.5e-06,2719.5,2719.4,9.128197]
[1739544763613,5.5e-06,2719.5,2719.4,43.849197]
[1739544763819,5.5e-06,2719.5,2719.4,44.127197]
[1739544766294,3.67487,2721.2,2720.6,3.67562]
[1739544766445,0.18031477,2721.3,2720.3,0.31475659]
[1739544766625,3.67527,2720.9,2720.3,3.95398]
[1739544766944,3.67527,2720.9,2720.3,3.95406]
[1739544767692,3.67567,2720.6,2720.3,0.278]
[1739544768550,3.67538,2720.8,2720.3,3.95405]
[1739544768869,3.67538,2720.8,2720.3,0.278]
[1739544769083,4.43735,2720.9,2720.4,3.67585]
[1739544769282,0.73427305,2721.7,2720.6,0.8313]
[1739544769481,3.68398,2721.9,2721.2,3.67472]
[1739544769811,3.67453,2721.5,2721.2,0.28]
[1739544769987,0.7621,2721.4,2721.2,0.28]
[1739544770304,4.36654464,2722.2,2721.3,0.8313]
[1739544770535,2.212,2728.3,2726.5,0.1]
[1739544770804,3.4723,2731.2,2727.3,0.2]
[1739544770805,3.66481,2728.7,2727.3,0.2]
[1739544770955,0.18067179,2729.4,2728.5,0.2]
[1739544771154,0.18067179,2729.4,2728.7,0.2]
[1739544771392,0.18067179,2729.4,2728.3,0.2]
[1739544771623,0.1475855,2730.3,2730.2,0.1]
[1739544772056,0.1475855,2730.3,2728.9,0.01372157]
[1739544772258,3.66422,2729.1,2728.6,0.2]
[1739544772482,3.66474,2728.7,2728.6,0.2]
[1739544772681,0.8017,2729.0,2728.4,0.01372157]
[1739544772959,0.8017,2729.0,2727.0,4.48811]
[1739544772960,3.6654,2728.3,2728.0,0.2]
[1739544773257,3.66555,2728.1,2728.0,0.2]
[1739544773600,4.72641605,2728.9,2728.0,0.2]
[1739544773601,0.8017,2728.7,2728.0,0.2]
[1739544773833,3.6651,2728.5,2728.0,0.2]
[1739544774098,0.8017,2728.7,2728.0,0.2]
[1739544774254,3.66489,2728.6,2728.0,0.2]
[1739544774454,0.8017,2728.7,2728.3,0.2]
[1739544774655,3.66609,2727.7,2727.6,0.2]
[1739544774856,3.6664,2727.5,2726.1,0.03666005]
[1739544775099,0.03666005,2727.6,2725.4,0.2]
[1739544775258,3.66532,2728.3,2725.9,0.2]
[1739544775456,6.6257,2728.7,2727.5,3.66628]
[1739544775761,6.6257,2728.7,2727.1,3.66685]
[1739544775762,3.66509,2728.5,2727.1,3.66685]
[1739544776310,3.66582,2727.9,2726.6,3.0]
[1739544776518,7.46658,2728.7,2726.5,0.03666266]
[1739544776659,7.46658,2728.7,2725.5,0.06709122]